fUST/lending_fUST_20240901
["ID","MTS","AMOUNT","RATE_DAILY","PERIOD"]
[336831837,1725197067012,-999.73999925,0.0004,120]
[336831838,1725197067053,-13718.0,0.0004,30]
[336831839,1725197067093,-382.5735306,0.0004,30]
[336831840,1725197067135,-529.81,0.0004,120]
[336831841,1725197067179,-720.421,0.0004,120]
[336831842,1725197067220,-283.0,0.0004,120]
[336831843,1725197067262,-359.77275978,0.000402,120]
[336831844,1725197067303,-151.0,0.00040356,120]
[336831845,1725197067346,-1238.38774414,0.000409,120]
[336831846,1725197067387,-600.0,0.00041095,120]
[336831847,1725197067427,-600.0,0.00041095,120]
[336831848,1725197067469,-600.0,0.00041095,31]
[336831849,1725197067511,-600.0,0.00041095,31]
[336831850,1725197067554,-600.0,0.00041095,31]
[336831851,1725197067599,-216.33739789,0.00041095,31]
[336831852,1725197072896,208.29140922,0.00039999,31]
[336831853,1725197072967,415.81640053,0.00039999,31]
[336831854,1725197073037,589.88696706,0.00039999,31]
[336831855,1725197073088,400.22914721,0.00039999,31]
[336831856,1725197073163,500.0,0.00039999,31]
[336831857,1725197073228,500.0,0.00039999,31]
[336831858,1725197073287,500.0,0.00039999,31]
[336831859,1725197073344,500.0,0.00039999,31]
[336831860,1725197073404,500.0,0.00039999,31]
[336831861,1725197073459,500.0,0.00039999,31]
[336831862,1725197073520,218.05662356,0.00039999,31]
[336831863,1725197073589,500.0,0.00039999,31]
[336831864,1725197073653,500.0,0.00039999,31]
[336831865,1725197073722,500.0,0.00039999,31]
[336831866,1725197073880,500.0,0.00039999,31]
[336831867,1725197074133,500.0,0.00039999,31]
[336831868,1725197074278,500.0,0.00039999,31]
[336831869,1725197074431,500.0,0.00039999,31]
[336831870,1725197074565,500.0,0.00039999,31]
[336831871,1725197074626,500.0,0.00039999,31]
[336831872,1725197074692,500.0,0.00039999,31]
[336831873,1725197074755,500.0,0.00039999,31]
[336831874,1725197074815,500.0,0.00039999,31]
[336831875,1725197074870,500.0,0.00039999,31]
[336831876,1725197074942,500.0,0.00039999,31]
[336831877,1725197075012,500.0,0.00039999,31]
[336831878,1725197075071,500.0,0.00039999,31]
[336831879,1725197075136,500.0,0.00039999,31]
[336831880,1725197075190,500.0,0.00039999,31]
[336831881,1725197075246,500.0,0.00039999,31]
[336831882,1725197075302,500.0,0.00039999,31]
[336831883,1725197075365,500.0,0.00039999,31]
[336831884,1725197075608,567.17442071,0.00039999,31]
[336831885,1725197075678,500.0,0.00039999,31]
[336831886,1725197094078,-153.0,0.0003726,120]
[336831887,1725197094120,-153.0,0.0003726,120]
[336831888,1725197094161,-153.0,0.0003726,120]
[336831889,1725197094204,-153.0,0.0003726,120]
[336831890,1725197094248,-153.0,0.0003726,120]
[336831891,1725197094291,-153.0,0.0003726,120]
[336831892,1725197094334,-153.0,0.0003726,120]
[336831893,1725197094375,-153.0,0.0003726,120]
[336831894,1725197094416,-153.0,0.0003726,120]
[336831895,1725197094459,-153.0,0.0003726,120]
[336831896,1725197094499,-153.0,0.0003726,120]
[336831897,1725197094543,-153.0,0.0003726,120]
[336831898,1725197094584,-153.0,0.0003726,120]
[336831899,1725197094627,-153.0,0.0003726,120]
[336831900,1725197094669,-153.0,0.0003726,120]
[336831901,1725197094712,-153.0,0.0003726,120]
[336831902,1725197094755,-153.0,0.0003726,120]
[336831903,1725197094797,-153.0,0.0003726,120]
[336831904,1725197094840,-153.0,0.0003726,120]
[336831905,1725197094888,-153.0,0.0003726,120]
[336831906,1725197094935,-153.0,0.0003726,120]
[336831907,1725197094986,-153.0,0.0003726,120]
[336831908,1725197095178,-153.0,0.0003726,120]
[336831909,1725197095230,-153.0,0.0003726,120]
[336831910,1725197095278,-1000.00256952,0.00039999,31]
[336831911,1725197095321,-1000.00256952,0.00039999,31]
[336831912,1725197095362,-1000.00256952,0.00039999,31]
[336831913,1725197095403,-1000.00256952,0.00039999,31]
[336831914,1725197095443,-1000.00256952,0.00039999,31]
[336831915,1725197095491,-1000.00256952,0.00039999,31]
[336831916,1725197095544,-500.0,0.00039999,31]
[336831917,1725197095596,-500.0,0.00039999,31]
[336831918,1725197095644,-500.0,0.00039999,31]
[336831919,1725197095692,-500.0,0.00039999,31]
[336831920,1725197095740,-500.0,0.00039999,31]
[336831921,1725197095787,-500.0,0.00039999,31]
[336831922,1725197095836,-500.0,0.00039999,31]
[336831923,1725197095885,-400.0,0.00039999,31]
[336831924,1725197095932,-500.0,0.00039999,31]
[336831925,1725197095989,-500.0,0.00039999,31]
[336831926,1725197096047,-1050.00269801,0.00039999,31]
[336831927,1725197096092,-1050.00269801,0.00039999,31]
[336831928,1725197096138,-151.0,0.00041397,120]
[336831929,1725197096182,-5025.55404507,0.000415,120]
[336831930,1725197096229,-353.993599,0.00041553,120]
[336831931,1725197096274,-180.0,0.00041983,90]
[336831932,1725197096319,-1000.0,0.00042,120]
[336831933,1725197096361,-151.0,0.00042082,120]
[336831934,1725197096404,-180.0,0.00042336,90]
[336831935,1725197096446,-766.84477921,0.000424,120]
[336831936,1725197096490,-560.767446,0.00042855,120]
[336831937,1725197096535,-227.79034144,0.00043,120]
[336831938,1725197096576,-60000.0,0.000433,120]
[336831939,1725197096618,-151.0,0.00043808,120]
[336831940,1725197096659,-600.0,0.00043835,120]
[336831941,1725197096700,-600.0,0.00043835,120]
[336831942,1725197096743,-600.0,0.00043835,120]
[336831943,1725197096786,-600.0,0.00043835,120]
[336831944,1725197096829,-597.9262508,0.00043835,120]
[336831945,1725197096874,-500.0,0.00043835,120]
[336831946,1725197096919,-214.40730061,0.00044,120]
[336831947,1725197096965,-1000.0,0.00044,120]
[336831948,1725197097007,-500.0,0.00044,120]
[336831949,1725197097053,-500.0,0.00044191,120]
[336831950,1725197097097,-151.0,0.00044247,120]
[336831951,1725197097138,-180.0,0.00044453,90]
[336831952,1725197097180,-500.0,0.00044547,120]
[336831953,1725197097221,-5000.0,0.000448,60]
[336831954,1725197097263,-500.0,0.00044904,120]
[336831955,1725197097305,-742.32455345,0.00045,120]
[336831956,1725197097346,-200.0,0.00045,120]
[336831957,1725197097388,-683.6516968,0.00045,120]
[336831958,1725197097428,-10094.75364473,0.00045,120]
[336831959,1725197097470,-400.0,0.00045,120]
[336831960,1725197097513,-497.32823777,0.0004526,120]
[336831961,1725197097558,-10000.0,0.000455,120]
[336831962,1725197097603,-151.0,0.00045534,120]
[336831963,1725197097646,-500.0,0.00046,120]
[336831964,1725197097691,-163.17876949,0.00046,120]
[336831965,1725197097736,-2064.785776,0.00046,120]
[336831966,1725197097781,-2017.0,0.00046,120]
[336831967,1725197097833,-10000.0,0.000465,120]
[336831968,1725197097876,-51212.49331827,0.000466,120]
[336831969,1725197097919,-894.74950534,0.000468,60]
[336831970,1725197097961,-2587.50061308,0.000468,90]
[336831971,1725197098003,-3020.9937554,0.000468,60]
[336831972,1725197098046,-2953.90833135,0.000468,120]
[336831973,1725197098089,-4886.4244964,0.000468,120]
[336831974,1725197098136,-5000.0,0.00046888,120]
[336831975,1725197098182,-151.0,0.00047096,120]
[336831976,1725197098228,-151.0,0.0004726,120]
[336831977,1725197098276,-353.993599,0.00047489,120]
[336831978,1725197098330,-7196.13029832,0.00047888,61]
[336831979,1725197098378,-5091.0,0.00047888,120]
[336831980,1725197098421,-1000.0,0.00047999,120]
[336831981,1725197098464,-500.0,0.00048,120]
[336831982,1725197098507,-275.8942018,0.00048,120]
[336831983,1725197098548,-5000.0,0.00048,120]
[336831984,1725197098590,-382.09659885,0.00048,120]
[336831985,1725197098632,-198.09893725,0.0004802,120]
[336831986,1725197098675,-560.767446,0.00048392,120]
[336831987,1725197098718,-207521.41037371,0.0004844,120]
[336831988,1725197098759,-151.0,0.00048986,120]
[336831989,1725197098801,-1000.0,0.00049,120]
[336831990,1725197098847,-1000.0,0.00049,120]
[336831991,1725197098893,-1000.0,0.00049,120]
[336831992,1725197098939,-1000.0,0.00049,120]
[336831993,1725197098986,-1000.0,0.00049,120]
[336831994,1725197099028,-3000.0,0.00049315,120]
[336831995,1725197099070,-500.0,0.00049315,31]
[336831996,1725197099111,-500.0,0.00049315,31]
[336831997,1725197099151,-500.0,0.00049315,31]
[336831998,1725197099192,-500.0,0.00049315,31]
[336831999,1725197099234,-258.8474359,0.00049315,31]
[336832000,1725197099276,-306.53860399,0.00049315,31]
[336832001,1725197099317,-500.0,0.00049315,31]
[336832002,1725197099359,-151.0,0.00049945,120]
[336832003,1725197099401,-1000.0,0.00049999,120]
[336832004,1725197099443,-200.0,0.0005,120]
[336832005,1725197099485,-5498.25873428,0.0005,120]
[336832006,1725197099530,-517.8385835,0.0005,120]
[336832007,1725197099575,-628.0,0.0005,120]
[336832008,1725197099618,-5033.0,0.0005,120]
[336832009,1725197099662,-638.0,0.0005,120]
[336832010,1725197099857,-500.0,0.0005,120]
[336832011,1725197099909,-500.0,0.0005,120]
[336832012,1725197099952,-500.0,0.0005,120]
[336832013,1725197099995,-467.91303802,0.0005,120]
[336832014,1725197100041,-4341.44431553,0.0005,60]
[336832015,1725197100088,-26112.15658687,0.0005,120]
[336832016,1725197100140,-1380.2986634,0.0005,120]
[336832017,1725197100196,-641.06490049,0.0005,120]
[336832018,1725197100245,-983.52216235,0.0005,60]
[336832019,1725197100291,-500.0,0.000503,60]
[336832020,1725197100338,-1000.0,0.000503,60]
[336832021,1725197100382,-1000.0,0.000506,60]
[336832022,1725197100426,-3000.0,0.00050684,120]
[336832023,1725197100469,-151.0,0.00050712,120]
[336832024,1725197100511,-5000.0,0.00051,120]
[336832025,1725197100556,-3000.0,0.00051,85]
[336832026,1725197100600,-3000.0,0.0005101,85]
[336832027,1725197100644,-3000.0,0.0005102,85]
[336832028,1725197100688,-3000.0,0.0005103,85]
[336832029,1725197100731,-3000.0,0.0005104,85]
[336832030,1725197100773,-3000.0,0.0005105,85]
[336832031,1725197100830,-3000.0,0.0005106,85]
[336832032,1725197100876,-3000.0,0.0005107,85]
[336832033,1725197100923,-5149.630021,0.0005108,85]
[336832034,1725197100970,-500.0,0.00052,120]
[336832035,1725197101018,-3000.0,0.00052054,120]
[336832036,1725197101177,153.0,0.0003726,120]
[336832037,1725197101238,153.0,0.0003726,120]
[336832038,1725197101301,153.0,0.0003726,120]
[336832039,1725197101362,153.0,0.0003726,120]
[336832040,1725197101420,153.0,0.0003726,120]
[336832041,1725197101473,153.0,0.0003726,120]
[336832042,1725197101527,153.0,0.0003726,120]
[336832043,1725197101583,153.0,0.0003726,120]
[336832044,1725197101636,153.0,0.0003726,120]
[336832045,1725197101693,153.0,0.0003726,120]
[336832046,1725197101745,153.0,0.0003726,120]
[336832047,1725197101808,153.0,0.0003726,120]
[336832048,1725197101863,153.0,0.0003726,120]
[336832049,1725197101932,153.0,0.0003726,120]
[336832050,1725197101989,153.0,0.0003726,120]
[336832051,1725197102045,153.0,0.0003726,120]
[336832052,1725197102099,153.0,0.0003726,120]
[336832053,1725197102146,153.0,0.0003726,120]
[336832054,1725197102202,153.0,0.0003726,120]
[336832055,1725197102254,153.0,0.0003726,120]
[336832056,1725197102311,153.0,0.0003726,120]
[336832057,1725197102369,153.0,0.0003726,120]
[336832058,1725197102425,153.0,0.0003726,120]
[336832059,1725197102481,153.0,0.0003726,120]
[336832060,1725197102549,153.0,0.0003726,120]
[336832061,1725197102625,153.0,0.0003726,120]
[336832062,1725197102694,153.0,0.0003726,120]
[336832063,1725197102772,153.0,0.0003726,120]
[336832064,1725197102834,153.0,0.0003726,120]
[336832065,1725197102891,153.0,0.0003726,120]
[336832066,1725197102948,153.0,0.0003726,120]
[336832067,1725197103007,153.0,0.0003726,120]
[336832068,1725197103116,153.0,0.0003726,120]
[336832069,1725197103182,153.0,0.0003726,120]
[336832070,1725197103246,153.0,0.0003726,120]
[336832071,1725197103310,153.0,0.0003726,120]
[336832072,1725197103376,153.0,0.0003726,120]
[336832073,1725197103445,153.0,0.0003726,120]
[336832074,1725197103591,153.0,0.0003726,120]
[336832075,1725197103676,153.0,0.0003726,120]
[336832076,1725197103744,153.0,0.0003726,120]
[336832077,1725197103828,153.0,0.0003726,120]
[336832078,1725197103895,153.0,0.0003726,120]
[336832079,1725197103958,153.0,0.0003726,120]
[336832080,1725197104127,153.0,0.0003726,120]
[336832081,1725197104342,153.0,0.0003726,120]
[336832082,1725197105130,153.0,0.0003726,120]
[336832083,1725197105344,153.0,0.0003726,120]
[336832084,1725197105601,819.1907265,0.00052053,120]
[336832085,1725197105668,153.0,0.0003726,120]
[336832086,1725197105795,153.0,0.0003726,120]
[336832087,1725197105855,23384.9264247,0.00052053,120]
[336832088,1725197106018,153.0,0.0003726,120]
[336832089,1725197106222,153.0,0.0003726,120]
[336832090,1725197106513,153.0,0.0003726,120]
[336832091,1725197106741,153.0,0.0003726,120]
[336832092,1725197106962,153.0,0.0003726,120]
[336832093,1725197107220,153.0,0.0003726,120]
[336832094,1725197107417,153.0,0.0003726,120]
[336832095,1725197107624,153.0,0.0003726,120]
[336832096,1725197107838,153.0,0.0003726,120]
[336832097,1725197108024,153.0,0.0003726,120]
[336832098,1725197108236,153.0,0.0003726,120]
[336832099,1725197108481,153.0,0.0003726,120]
[336832100,1725197108710,153.0,0.0003726,120]
[336832101,1725197108916,153.0,0.0003726,120]
[336832102,1725197108992,151.0,0.00045,120]
[336832103,1725197109129,153.0,0.0003726,120]
[336832104,1725197109293,151.0,0.0004544,120]
[336832105,1725197109379,153.0,0.0003726,120]
[336832106,1725197109627,151.0,0.0004744,120]
[336832107,1725197110032,1105.2659979,0.00039999,31]
[336832108,1725197110161,153.0,0.0003726,120]
[336832109,1725197110459,153.0,0.0003726,120]
[336832110,1725197110700,153.0,0.0003726,120]
[336832111,1725197112255,151.0,0.00045,120]
[336832112,1725197112721,261.816983,0.0004544,120]
[336832113,1725197115521,452.0,0.0003726,120]
[336832114,1725197115734,452.0,0.0003726,120]
[336832115,1725197116047,452.0,0.0003726,120]
[336832116,1725197116254,452.0,0.0003726,120]
[336832117,1725197116464,452.0,0.0003726,120]
[336832118,1725197116676,452.0,0.0003726,120]
[336832119,1725197116911,452.0,0.0003726,120]
[336832120,1725197117127,452.0,0.0003726,120]
[336832121,1725197117339,452.0,0.0003726,120]
[336832122,1725197117546,452.0,0.0003726,120]
[336832123,1725197117773,452.0,0.0003726,120]
[336832124,1725197118035,452.0,0.0003726,120]
[336832125,1725197118255,452.0,0.0003726,120]
[336832126,1725197118480,452.0,0.0003726,120]
[336832127,1725197118849,452.0,0.0003726,120]
[336832128,1725197119062,452.0,0.0003726,120]
[336832129,1725197119294,452.0,0.0003726,120]
[336832130,1725197119704,452.0,0.0003726,120]
[336832131,1725197119914,452.0,0.0003726,120]
[336832132,1725197120134,452.0,0.0003726,120]
[336832133,1725197120371,452.0,0.0003726,120]
[336832134,1725197120582,452.0,0.0003726,120]
[336832135,1725197120807,452.0,0.0003726,120]
[336832136,1725197121023,452.0,0.0003726,120]
[336832137,1725197121324,452.0,0.0003726,120]
[336832138,1725197121675,452.0,0.0003726,120]
[336832139,1725197121912,452.0,0.0003726,120]
[336832140,1725197122156,452.0,0.0003726,120]
[336832141,1725197122376,452.0,0.0003726,120]
[336832142,1725197122591,452.0,0.0003726,120]
[336832143,1725197122800,452.0,0.0003726,120]
[336832144,1725197123041,452.0,0.0003726,120]
[336832145,1725197123353,452.0,0.0003726,120]
[336832146,1725197123719,452.0,0.0003726,120]
[336832147,1725197124096,452.0,0.0003726,120]
[336832148,1725197124306,452.0,0.0003726,120]
[336832149,1725197124518,452.0,0.0003726,120]
[336832150,1725197125298,452.0,0.0003726,120]
[336832151,1725197125513,452.0,0.0003726,120]
[336832152,1725197125729,452.0,0.0003726,120]
[336832153,1725197125963,452.0,0.0003726,120]
[336832154,1725197126224,452.0,0.0003726,120]
[336832155,1725197126452,452.0,0.0003726,120]
[336832156,1725197126672,452.0,0.0003726,120]
[336832157,1725197126886,452.0,0.0003726,120]
[336832158,1725197127104,452.0,0.0003726,120]
[336832159,1725197127335,452.0,0.0003726,120]
[336832160,1725197127640,452.0,0.0003726,120]
[336832161,1725197127943,452.0,0.0003726,120]
[336832162,1725197128165,452.0,0.0003726,120]
[336832163,1725197128383,452.0,0.0003726,120]
[336832164,1725197128599,452.0,0.0003726,120]
[336832165,1725197128919,452.0,0.0003726,120]
[336832166,1725197129128,452.0,0.0003726,120]
[336832167,1725197129414,452.0,0.0003726,120]
[336832168,1725197129520,151.0,0.0004544,120]
[336832169,1725197129631,452.0,0.0003726,120]
[336832170,1725197129848,280.49809429,0.0003726,120]
[336832181,1725197366862,536.8375656,0.00019892,2]
[336832182,1725197419624,251.0,0.00019414,2]
[336832188,1725197432201,-250.0,0.00020041,2]
[336832189,1725197432210,-250.0,0.00020096,2]
[336832190,1725197432219,-7910.87135431,0.0002012,2]
[336832191,1725197435680,1067.082907,0.00019451,2]
[336832194,1725197438373,-1155.72979059,0.0002012,2]
[336832195,1725197438383,-300.0,0.00020149,2]
[336832196,1725197438392,-300.0,0.0002015,2]
[336832197,1725197438401,-250.0,0.00020151,2]
[336832198,1725197438411,-250.0,0.00020206,2]
[336832199,1725197438420,-117.75854329,0.00020261,2]
[336832200,1725197438436,-132.24145671,0.00020261,2]
[336832201,1725197438445,-250.0,0.00020316,2]
[336832202,1725197438455,-250.0,0.00020371,2]
[336832203,1725197438464,-250.0,0.00020426,2]
[336832204,1725197438474,-250.0,0.0002048,2]
[336832205,1725197438484,-250.0,0.00020535,2]
[336832206,1725197438494,-250.0,0.0002059,2]
[336832207,1725197438503,-13164.29237574,0.0002061,2]
[336832208,1725197438512,-1667.685547,0.00020613,2]
[336832209,1725197438522,-250.0,0.00020645,2]
[336832210,1725197438532,-250.0,0.000207,2]
[336832211,1725197438541,-12641.4076055,0.00020707,2]
[336832212,1725197438550,-250.0,0.00020755,2]
[336832213,1725197438560,-250.0,0.0002081,2]
[336832214,1725197438569,-250.0,0.00020865,2]
[336832215,1725197438578,-189.8180995,0.00020877,2]
[336832216,1725197438588,-250.0,0.0002092,2]
[336832217,1725197438598,-250.0,0.00020975,2]
[336832218,1725197438607,-250.0,0.0002103,2]
[336832219,1725197438616,-250.0,0.00021085,2]
[336832220,1725197438626,-193.051699,0.00021195,2]
[336832221,1725197438635,-3000.0,0.00021395,2]
[336832222,1725197438644,-267.59655388,0.00021428,2]
[336832223,1725197438653,-500.0,0.00021428,2]
[336832224,1725197438662,-500.0,0.00021428,2]
[336832225,1725197438672,-411.49797923,0.00021428,2]
[336832226,1725197438682,-500.0,0.00021428,2]
[336832227,1725197438691,-500.0,0.00021428,2]
[336832228,1725197438701,-500.0,0.00021428,2]
[336832229,1725197438710,-500.0,0.00021428,2]
[336832230,1725197438720,-500.0,0.00021428,2]
[336832231,1725197438730,-500.0,0.00021428,2]
[336832232,1725197438740,-500.0,0.00021428,2]
[336832233,1725197438750,-500.0,0.00021428,2]
[336832234,1725197438760,-500.0,0.00021428,2]
[336832235,1725197438769,-500.0,0.00021428,2]
[336832236,1725197438779,-500.0,0.00021428,2]
[336832237,1725197438788,-500.0,0.00021428,2]
[336832238,1725197438799,-500.0,0.00021428,2]
[336832239,1725197438809,-500.0,0.00021428,2]
[336832240,1725197438819,-500.0,0.00021428,2]
[336832241,1725197438828,-500.0,0.00021428,2]
[336832242,1725197438838,-500.0,0.00021428,2]
[336832243,1725197438847,-500.0,0.00021428,2]
[336832244,1725197438858,-500.0,0.00021428,2]
[336832245,1725197438867,-203.00603599,0.00021428,2]
[336832246,1725197438877,-24900.0,0.00021429,2]
[336832247,1725197438886,-420.0,0.00021937,2]
[336832248,1725197438895,-420.0,0.00022165,2]
[336832249,1725197438904,-166.925329,0.00023813,2]
[336832250,1725197438914,-587.0,0.00023883,2]
[336832251,1725197438923,-192.27015995,0.00024343,2]
[336832252,1725197438932,-587.0,0.00024381,2]
[336832253,1725197438942,-360.3,0.00024537,3]
[336832254,1725197438951,-18424.20922991,0.00024547,3]
[336832255,1725197438961,-2000.0,0.00024557,2]
[336832256,1725197438970,-41233.7604066,0.00024646,3]
[336832257,1725197438979,-171.52677737,0.00024646,2]
[336832258,1725197438989,-252.80870017,0.00024646,2]
[336832259,1725197438998,-500.0,0.00024646,2]
[336832260,1725197439008,-500.0,0.00024646,2]
[336832261,1725197439019,-236.30998152,0.00024646,2]
[336832262,1725197439030,-500.0,0.00024646,2]
[336832263,1725197439039,-500.0,0.00024646,2]
[336832264,1725197439048,-500.0,0.00024646,2]
[336832265,1725197439058,-500.0,0.00024646,2]
[336832266,1725197439068,-500.0,0.00024646,2]
[336832267,1725197439078,-478.78903745,0.00024646,2]
[336832268,1725197439087,-500.0,0.00024646,2]
[336832269,1725197439099,-500.0,0.00024646,2]
[336832270,1725197439108,-500.0,0.00024646,2]
[336832271,1725197439117,-585.15232621,0.00024646,2]
[336832272,1725197439126,-500.0,0.00024646,2]
[336832273,1725197439136,-500.0,0.00024646,2]
[336832274,1725197439147,-500.0,0.00024646,2]
[336832275,1725197439156,-2979.71788197,0.00024647,11]
[336832276,1725197439167,-206168.802033,0.00024647,3]
[336832277,1725197439177,-500.0,0.00024657,2]
[336832278,1725197439187,-504.63088037,0.00024657,2]
[336832279,1725197439197,-500.0,0.00024657,2]
[336832280,1725197439207,-500.0,0.00024657,2]
[336832281,1725197439219,-500.0,0.00024657,2]
[336832282,1725197439229,-502.85223242,0.00024657,2]
[336832283,1725197439240,-500.0,0.00024657,2]
[336832284,1725197439260,-500.0,0.00024657,2]
[336832285,1725197439270,-500.0,0.00024657,2]
[336832286,1725197439279,-500.0,0.00024657,2]
[336832287,1725197439289,-500.0,0.00024657,2]
[336832288,1725197439298,-500.0,0.00024657,2]
[336832289,1725197439308,-500.0,0.00024657,2]
[336832290,1725197439317,-575.63174759,0.00024657,2]
[336832291,1725197439327,-500.0,0.00024657,2]
[336832292,1725197439336,-500.0,0.00024657,2]
[336832293,1725197439345,-358.4850641,0.00024657,2]
[336832294,1725197439355,-500.0,0.00024657,2]
[336832295,1725197439364,-368.99011333,0.00024657,2]
[336832296,1725197439374,-520.01,0.00024657,2]
[336832297,1725197439383,-500.0,0.00024657,2]
[336832298,1725197439394,-500.0,0.00024657,2]
[336832299,1725197439403,-736.2,0.00024657,2]
[336832300,1725197439413,-196.7526298,0.00024657,2]
[336832301,1725197439424,-500.0,0.00024657,2]
[336832302,1725197439433,-500.0,0.00024657,2]
[336832303,1725197439442,-500.0,0.00024657,2]
[336832304,1725197439453,-500.0,0.00024657,2]
[336832305,1725197439462,-500.0,0.00024657,2]
[336832306,1725197439472,-500.0,0.00024657,2]
[336832307,1725197439481,-500.0,0.00024657,2]
[336832308,1725197439495,-500.0,0.00024657,2]
[336832309,1725197439505,-500.0,0.00024657,2]
[336832310,1725197439514,-500.0,0.00024657,2]
[336832311,1725197439523,-500.0,0.00024657,2]
[336832312,1725197439532,-500.0,0.00024657,2]
[336832313,1725197439543,-589.75940358,0.00024657,2]
[336832314,1725197439552,-501.77420178,0.00024657,2]
[336832315,1725197439564,-500.0,0.00024657,2]
[336832316,1725197439574,-500.0,0.00024657,2]
[336832317,1725197439583,-500.0,0.00024657,2]
[336832318,1725197439593,-500.0,0.00024657,2]
[336832319,1725197439603,-500.0,0.00024657,2]
[336832320,1725197439612,-500.0,0.00024657,2]
[336832321,1725197439622,-950.08,0.00024657,2]
[336832322,1725197439631,-500.0,0.00024657,2]
[336832323,1725197439641,-500.0,0.00024657,2]
[336832324,1725197439651,-500.0,0.00024657,2]
[336832325,1725197439804,-500.0,0.00024657,2]
[336832326,1725197439815,-500.0,0.00024657,2]
[336832327,1725197439825,-500.0,0.00024657,2]
[336832328,1725197439835,-500.0,0.00024657,2]
[336832329,1725197439846,-500.0,0.00024657,2]
[336832330,1725197439857,-500.0,0.00024657,2]
[336832331,1725197439867,-500.0,0.00024657,2]
[336832332,1725197439876,-500.0,0.00024657,2]
[336832333,1725197439886,-500.0,0.00024657,2]
[336832334,1725197439896,-500.0,0.00024657,2]
[336832335,1725197439906,-500.0,0.00024657,2]
[336832336,1725197439915,-500.0,0.00024657,2]
[336832337,1725197439924,-500.0,0.00024657,2]
[336832338,1725197439933,-206.90056765,0.00024657,2]
[336832339,1725197439943,-500.0,0.00024657,2]
[336832340,1725197439952,-500.0,0.00024657,2]
[336832341,1725197439961,-500.0,0.00024657,2]
[336832342,1725197439970,-500.0,0.00024657,2]
[336832343,1725197439979,-500.0,0.00024657,2]
[336832344,1725197439990,-508.08675797,0.00024657,2]
[336832345,1725197439999,-500.0,0.00024657,2]
[336832346,1725197440009,-153.78753431,0.00024657,2]
[336832347,1725197440019,-500.0,0.00024657,2]
[336832348,1725197440032,-500.0,0.00024657,2]
[336832349,1725197440043,-500.0,0.00024657,2]
[336832350,1725197440055,-500.0,0.00024657,2]
[336832351,1725197440067,-500.0,0.00024657,2]
[336832352,1725197440078,-502.67268852,0.00024657,2]
[336832354,1725197440087,-500.0,0.00024657,2]